bitfinex/quotes_BTCUSD_20250515
["timestamp","ask_amount","ask_price","bid_price","bid_amount"]
[1747319216875,0.87250783,102250.0,102240.0,0.00118099]
[1747319217375,0.88228768,102250.0,102240.0,0.20658004]
[1747319217601,0.43519748,102250.0,102240.0,0.3093216]
[1747319217810,0.003,102250.0,102240.0,0.3093216]
[1747319218049,0.01277928,102250.0,102240.0,0.3093216]
[1747319218257,0.003,102250.0,102240.0,0.3093216]
[1747319218460,0.01277928,102250.0,102240.0,0.3093216]
[1747319218882,0.003,102250.0,102240.0,0.3093216]
[1747319219213,0.003,102250.0,102240.0,0.7186216]
[1747319219423,0.02255884,102250.0,102240.0,0.7186216]
[1747319219619,0.21815833,102250.0,102240.0,0.45318099]
[1747319219851,0.21815833,102250.0,102240.0,0.41048099]
[1747319219852,0.31546773,102250.0,102240.0,0.41048099]
[1747319220051,0.71816773,102250.0,102240.0,0.00118099]
[1747319222561,0.68646773,102250.0,102240.0,0.00118099]
[1747319222771,0.71886773,102250.0,102240.0,0.00118099]
[1747319222980,0.90334773,102250.0,102240.0,0.00118099]
[1747319223401,0.64568798,102250.0,102240.0,0.19679914]
[1747319223609,0.88208759,102250.0,102240.0,0.00118099]
[1747319223834,0.87230803,102250.0,102240.0,0.00118099]
[1747319224037,0.87230803,102250.0,102240.0,0.21834099]
[1747319224445,1.03311743,102250.0,102240.0,0.21834099]
[1747319224884,0.87230803,102250.0,102240.0,0.42373985]
[1747319225111,0.87230803,102250.0,102240.0,0.43352085]
[1747319225312,0.32688849,102250.0,102240.0,0.4959816]
[1747319225522,0.23935837,102250.0,102240.0,0.5281816]
[1747319225726,0.2198,102250.0,102240.0,0.5281816]
[1747319226173,0.22957909,102250.0,102240.0,0.53500628]
[1747319226391,0.44473752,102250.0,102240.0,0.50566472]
[1747319226591,0.45451738,102250.0,102240.0,0.52522615]
[1747319226793,0.45451728,102250.0,102240.0,0.52522624]
[1747319227012,0.43495777,102250.0,102240.0,0.53500676]
[1747319227154,0.22857928,102250.0,102240.0,0.54478699]
[1747319227361,0.23835875,102250.0,102240.0,0.54478699]
[1747319227565,0.22857928,102250.0,102240.0,0.54478699]
[1747319227951,0.22657918,102250.0,102240.0,0.54478699]
[1747319228363,0.22657937,102250.0,102240.0,0.54478699]
[1747319228569,0.2168,102250.0,102240.0,0.54478699]
[1747319228785,0.00977727,102270.0,102260.0,0.21513739]
[1747319229027,0.57464882,102280.0,102270.0,0.21511646]
[1747319229226,0.57464882,102280.0,102270.0,0.21716]
[1747319229227,0.86912511,102280.0,102270.0,0.21716]
[1747319229864,0.01955731,102260.0,102250.0,0.0715]
[1747319230092,0.01955731,102260.0,102250.0,0.22716]
[1747319230093,0.3124466,102260.0,102250.0,0.22716]
[1747319230535,0.3124466,102260.0,102250.0,0.22398804]
[1747319230750,0.3754466,102260.0,102250.0,0.22398804]
[1747319230970,0.77738905,102260.0,102250.0,0.22398804]
[1747319231188,0.8019299,102260.0,102250.0,0.00982804]
[1747319231409,0.8019299,102260.0,102250.0,0.003]
[1747319231622,0.26617877,102250.0,102240.0,0.00118099]
[1747319231841,0.58012817,102250.0,102240.0,0.00118099]
[1747319232940,0.67743757,102250.0,102240.0,0.00118099]
[1747319233159,0.58012817,102250.0,102240.0,0.00118099]
[1747319236060,0.37802902,102250.0,102240.0,0.00118099]
[1747319236295,0.59454902,102250.0,102240.0,0.00118099]
[1747319237437,0.59654902,102250.0,102240.0,0.00118099]
[1747319237674,0.59454902,102250.0,102240.0,0.00118099]
[1747319237884,0.69385842,102250.0,102240.0,0.00118099]
[1747319238111,0.69685842,102250.0,102240.0,0.00118099]
[1747319238561,0.69485842,102250.0,102240.0,0.00118099]
[1747319238783,0.69785842,102250.0,102240.0,0.00118099]
[1747319239264,0.21520033,102230.0,102220.0,0.00039689]
[1747319239500,0.51373415,102230.0,102220.0,0.00039689]
[1747319239936,0.86373415,102230.0,102220.0,0.00039689]
[1747319240377,0.24714243,102210.0,102200.0,0.61034]
[1747319240591,0.59215183,102210.0,102200.0,0.20104]
[1747319240838,0.70400208,102210.0,102200.0,0.14272554]
[1747319241719,0.70700208,102210.0,102200.0,0.14286991]
[1747319241953,1.04700208,102210.0,102200.0,0.14286991]
[1747319242158,0.55528457,102190.0,102180.0,0.4103]
[1747319242359,0.8444036,102190.0,102180.0,0.00148142]
[1747319242984,0.8126036,102190.0,102180.0,0.00148142]
[1747319243211,0.65259397,102190.0,102180.0,0.00148142]
[1747319243427,0.86895397,102190.0,102180.0,0.00348142]
[1747319243657,0.86895397,102190.0,102180.0,0.00148142]
[1747319243866,0.85916876,102190.0,102180.0,0.00148142]
[1747319244068,0.10909461,102190.0,102180.0,0.21678745]
[1747319244283,0.34502474,102190.0,102180.0,0.68875969]
[1747319244499,0.53095397,102190.0,102180.0,0.41378142]
[1747319244715,0.94362054,102190.0,102180.0,0.41078142]
[1747319244935,0.97582054,102190.0,102180.0,0.00148142]
[1747319245154,0.87195397,102190.0,102180.0,0.00148142]
[1747319245565,0.87095397,102190.0,102180.0,0.00148142]
[1747319245771,0.87095397,102190.0,102180.0,0.00248142]
[1747319246410,0.86895397,102190.0,102180.0,0.00248142]
[1747319246610,0.86895397,102190.0,102180.0,0.00548142]
[1747319246807,0.96626337,102190.0,102180.0,0.00548142]
[1747319247011,0.99946337,102190.0,102180.0,0.00248142]
[1747319247211,1.03206337,102190.0,102180.0,0.00348142]
[1747319247642,0.86895397,102190.0,102180.0,0.00348142]
[1747319247896,0.86887445,102190.0,102180.0,0.00348142]
[1747319249100,0.65259445,102190.0,102180.0,0.00348142]
[1747319249306,0.86887445,102190.0,102180.0,0.00348142]
[1747319249595,0.64280876,102190.0,102180.0,0.04628142]
[1747319249801,0.50930326,102190.0,102180.0,0.28190099]
[1747319249973,0.5386587,102190.0,102180.0,0.3014737]
[1747319250206,0.20549637,102200.0,102190.0,0.28608495]
[1747319250207,0.21528014,102200.0,102190.0,0.28608495]
[1747319250381,0.53863696,102200.0,102190.0,0.28608505]
[1747319250616,0.52885242,102200.0,102190.0,0.30565576]
[1747319250849,0.3135894,102200.0,102190.0,0.31544078]
[1747319251113,0.21628,102200.0,102190.0,0.31544078]
[1747319251542,0.21523847,102220.0,102210.0,0.20545914]
[1747319251772,0.87857069,102220.0,102210.0,0.4093]
[1747319251996,0.86878835,102220.0,102210.0,0.4093]
[1747319252205,0.31254835,102220.0,102210.0,0.4093]
[1747319252421,0.52878835,102220.0,102210.0,0.4093]
[1747319252841,0.52878835,102220.0,102210.0,0.4193]
[1747319253047,0.10709136,102220.0,102210.0,0.70762573]
[1747319253255,0.54829479,102220.0,102210.0,0.68805924]
[1747319253471,0.52873116,102220.0,102210.0,0.4093]
[1747319253673,0.86873116,102220.0,102210.0,0.4093]
[1747319254216,0.86973116,102220.0,102210.0,0.4093]
[1747319254468,0.29396582,102220.0,102210.0,0.60497556]
[1747319254663,0.29396582,102220.0,102210.0,0.4093]
[1747319254664,0.31353078,102220.0,102210.0,0.4093]
[1747319257041,0.0983094,102220.0,102210.0,0.65565924]
[1747319257245,0.21712,102220.0,102210.0,0.70592573]
[1747319257886,0.44212296,102220.0,102210.0,0.70592573]
[1747319258096,0.44212296,102220.0,102210.0,0.69614263]
[1747319258295,0.44112296,102220.0,102210.0,0.71570893]
[1747319258730,0.21620395,102230.0,102220.0,0.01]
[1747319258931,0.32417059,102230.0,102220.0,0.66647804]
[1747319259139,0.001,102230.0,102220.0,0.70540372]
[1747319259346,0.22686119,102230.0,102220.0,0.70540372]
[1747319259793,0.23664238,102230.0,102220.0,0.29610372]
[1747319260029,0.001,102230.0,102220.0,0.29810372]
[1747319260431,0.235763,102230.0,102220.0,0.25875642]
[1747319260638,0.21620071,102230.0,102220.0,0.0731]
[1747319260870,0.37825223,102230.0,102220.0,0.4123]
[1747319261065,0.37825223,102230.0,102220.0,0.003]
[1747319261276,0.31351011,102230.0,102220.0,0.013]
[1747319262447,0.31351011,102230.0,102220.0,0.003]
[1747319262867,0.34471011,102230.0,102220.0,0.003]
[1747319263182,0.37561011,102230.0,102220.0,0.003]
[1747319263394,0.34471011,102230.0,102220.0,0.003]
[1747319263956,0.43131852,102230.0,102220.0,0.003]
[1747319264180,0.34471011,102230.0,102220.0,0.003]
[1747319264383,0.71791011,102230.0,102220.0,0.003]
[1747319264794,0.79117096,102230.0,102220.0,0.003]
[1747319265372,0.79117096,102230.0,102220.0,0.002]
[1747319266329,0.2152635,102200.0,102190.0,0.63908]
[1747319266519,0.5284929,102200.0,102190.0,0.63956142]
[1747319266924,0.60091146,102200.0,102190.0,0.00048142]
[1747319267264,0.66331146,102200.0,102190.0,0.00048142]
[1747319267687,0.60091146,102200.0,102190.0,0.00348142]
[1747319267807,0.3125729,102200.0,102190.0,0.03305232]
[1747319268011,0.53823754,102200.0,102190.0,0.01348142]
[1747319268218,0.52845329,102200.0,102190.0,0.01348142]
[1747319268429,0.52845329,102200.0,102190.0,0.01048142]
[1747319268638,0.52845329,102200.0,102190.0,0.01348142]
[1747319269089,0.51866875,102200.0,102190.0,0.01048142]
[1747319269325,0.51866875,102200.0,102190.0,0.01248142]
[1747319269888,0.59010489,102200.0,102190.0,0.00248142]
[1747319270055,0.99460489,102200.0,102190.0,0.00248142]
[1747319270844,1.00914574,102200.0,102190.0,0.00348142]
[1747319271257,1.01914574,102200.0,102190.0,0.00248142]
[1747319271434,1.00914574,102200.0,102190.0,0.00248142]
[1747319271640,1.02114574,102200.0,102190.0,0.00248142]
[1747319271859,1.01110574,102200.0,102190.0,0.00048142]
[1747319271986,1.01310574,102200.0,102190.0,0.00048142]
[1747319272192,0.64678875,102200.0,102190.0,0.00048142]
[1747319272393,0.86262875,102200.0,102190.0,0.00048142]
[1747319273818,0.92772875,102200.0,102190.0,0.00048142]
[1747319274035,0.86262875,102200.0,102190.0,0.00048142]
[1747319274223,0.86062875,102200.0,102190.0,0.00048142]
[1747319274559,0.95793815,102200.0,102190.0,0.00048142]
[1747319274763,0.95593815,102200.0,102190.0,0.00048142]
[1747319275201,0.85862875,102200.0,102190.0,0.00048142]
[1747319275484,0.84884411,102200.0,102190.0,0.00048142]
[1747319277353,0.91204411,102200.0,102190.0,0.00048142]
[1747319278674,0.98530496,102200.0,102190.0,0.00048142]
[1747319279593,0.99330496,102200.0,102190.0,0.00048142]
[1747319279810,1.09061436,102200.0,102190.0,0.00048142]
[1747319280417,1.10061436,102200.0,102190.0,0.00048142]
[1747319282450,0.22006032,102180.0,102170.0,4e-05]
[1747319282595,0.48928972,102180.0,102170.0,8.805e-05]
[1747319282918,0.43056972,102180.0,102170.0,8.805e-05]
[1747319283126,0.52787912,102180.0,102170.0,8.805e-05]
[1747319283532,0.86787912,102180.0,102170.0,8.805e-05]
[1747319284078,0.55534778,102160.0,102150.0,4e-05]
[1747319284282,0.86829718,102160.0,102150.0,0.00018446]
[1747319284798,0.94603803,102160.0,102150.0,0.00018446]
[1747319285003,1.05334743,102160.0,102150.0,0.00018446]
[1747319285391,1.06328042,102160.0,102150.0,0.00018446]
[1747319285836,1.08859449,102160.0,102150.0,0.00218446]
[1747319286010,1.11454375,102160.0,102150.0,0.00318446]
[1747319286446,1.11654375,102160.0,102150.0,0.00018446]
[1747319286849,1.11854375,102160.0,102150.0,0.00018446]
[1747319287052,1.06728042,102160.0,102150.0,0.00018446]
[1747319287254,0.84164042,102160.0,102150.0,0.00018446]
[1747319287667,0.89677102,102160.0,102150.0,0.00018446]
[1747319288795,0.92987102,102160.0,102150.0,0.00018446]
[1747319289007,0.96097102,102160.0,102150.0,0.00018446]
[1747319292959,1.01969102,102160.0,102150.0,0.00018446]
[1747319293158,1.11700042,102160.0,102150.0,0.00018446]
[1747319293683,0.21541105,102130.0,102120.0,0.0001]
[1747319293830,0.57668045,102130.0,102120.0,0.00024459]
[1747319294181,0.65393119,102130.0,102120.0,0.00024459]
[1747319294379,0.60553119,102130.0,102120.0,0.00024459]
[1747319295455,0.5184892,102130.0,102120.0,0.01024459]
[1747319295663,0.54886207,102130.0,102120.0,0.28458491]
[1747319295879,0.33345103,102130.0,102120.0,0.31696075]
[1747319296092,0.54886246,102130.0,102120.0,0.29737711]
[1747319296299,0.54886323,102130.0,102120.0,0.28758491]
[1747319296502,0.54886323,102130.0,102120.0,0.30716922]
[1747319296749,0.52928045,102130.0,102120.0,0.31696104]
[1747319296924,0.53907179,102130.0,102120.0,0.30716922]
[1747319297062,0.32366007,102130.0,102120.0,0.31696084]
[1747319297272,0.53907073,102130.0,102120.0,0.29737711]
[1747319297474,0.54886198,102130.0,102120.0,0.27779261]
[1747319297680,0.54886198,102130.0,102120.0,0.31696085]
[1747319297681,0.11789084,102130.0,102120.0,0.31696085]
[1747319297885,0.001,102130.0,102120.0,0.31696095]
[1747319298084,0.001,102130.0,102120.0,0.84270511]
[1747319298338,0.21652,102130.0,102120.0,0.84270511]
[1747319298538,0.21652,102130.0,102120.0,0.32675267]
[1747319298681,0.41234884,102130.0,102120.0,0.31675267]
[1747319298913,0.21652,102130.0,102120.0,0.32675267]
[1747319299117,0.42213951,102130.0,102120.0,0.28758501]
[1747319299319,0.44172152,102130.0,102120.0,0.27779261]
[1747319299519,0.45151286,102130.0,102120.0,0.08194459]
[1747319299720,0.55455522,102130.0,102120.0,0.29786459]
[1747319299925,0.52924073,102130.0,102120.0,0.29786459]
[1747319300380,0.51944958,102130.0,102120.0,0.29786459]
[1747319301742,0.51944958,102130.0,102120.0,0.28786459]
[1747319302007,0.51944958,102130.0,102120.0,0.67666459]
[1747319302211,0.51944958,102130.0,102120.0,0.46074459]
[1747319302436,0.59097554,102130.0,102120.0,0.42754459]
[1747319302655,0.59097554,102130.0,102120.0,0.41754459]
[1747319303235,0.61628961,102130.0,102120.0,0.41754459]
[1747319303681,0.64223887,102130.0,102120.0,0.41754459]
[1747319303931,0.98223887,102130.0,102120.0,0.41754459]
[1747319304884,1.01423887,102130.0,102120.0,0.41754459]
[1747319305729,1.04463887,102130.0,102120.0,0.41754459]
[1747319305944,1.04463887,102130.0,102120.0,0.41584096]
[1747319306161,1.03386565,102130.0,102120.0,0.00654096]
[1747319306382,0.35,102120.0,102100.0,4e-05]
[1747319306602,0.35,102120.0,102080.0,0.4854]
[1747319306603,0.55549544,102090.0,102080.0,0.4523]
[1747319306826,0.86816484,102090.0,102080.0,0.4093]
[1747319307223,0.5457208,102080.0,102070.0,0.0153999]
[1747319307480,0.6914302,102080.0,102070.0,0.0153999]
[1747319308134,0.6914302,102080.0,102070.0,0.0158821]
[1747319308340,0.86818615,102080.0,102070.0,0.0258821]
[1747319308542,0.94374351,102080.0,102070.0,0.0308821]
[1747319308748,0.94474351,102080.0,102070.0,0.0358821]
[1747319308920,0.94374351,102080.0,102070.0,0.0308821]
[1747319309171,0.6430302,102080.0,102070.0,0.0278821]
[1747319309398,0.87798209,102080.0,102070.0,0.0612821]
[1747319309603,0.86818634,102080.0,102070.0,0.0612821]
[1747319310025,0.65282634,102080.0,102070.0,0.0916821]
[1747319310286,0.8583903,102080.0,102070.0,0.5009821]
[1747319310504,0.86818557,102080.0,102070.0,0.72631649]
[1747319310716,0.86818557,102080.0,102070.0,0.70672325]
[1747319310923,0.86818557,102080.0,102070.0,0.69692606]
[1747319310924,0.0973094,102080.0,102070.0,0.69692606]
[1747319311132,0.53798104,102080.0,102070.0,0.71651997]
[1747319311341,0.33241785,102080.0,102070.0,0.5107792]
[1747319311570,0.52818634,102080.0,102070.0,0.5009821]
[1747319311774,0.61501868,102080.0,102070.0,0.4705821]
[1747319312005,0.95501868,102080.0,102070.0,0.4381821]
[1747319312411,0.95501868,102080.0,102070.0,0.4281821]
[1747319313143,0.95501868,102080.0,102070.0,0.4381821]
[1747319313546,0.95501868,102080.0,102070.0,0.4281821]
[1747319314275,0.73965868,102080.0,102070.0,0.4281821]
[1747319314483,0.73965868,102080.0,102070.0,0.4702821]
[1747319314484,0.86818634,102080.0,102070.0,0.4702821]
[1747319314913,0.87798191,102080.0,102070.0,0.70852316]
[1747319315115,0.87798191,102080.0,102070.0,0.5027821]
[1747319315318,0.66262191,102080.0,102070.0,0.5027821]
[1747319315523,0.86818625,102080.0,102070.0,0.5027821]
[1747319315729,0.96549565,102080.0,102070.0,0.5027821]
[1747319316508,0.6430303,102080.0,102070.0,0.5027821]
[1747319316708,0.8583903,102080.0,102070.0,0.5027821]
[1747319318377,0.8583503,102080.0,102070.0,0.5027821]
[1747319318787,0.87794238,102080.0,102070.0,0.5027821]
[1747319319006,0.86814653,102080.0,102070.0,0.5027821]
[1747319319477,0.96545593,102080.0,102070.0,0.5027821]
[1747319320143,0.86814653,102080.0,102070.0,0.5027821]
[1747319320544,0.85835039,102080.0,102070.0,0.5027821]
[1747319321776,0.85835039,102080.0,102070.0,0.4702821]
[1747319321984,0.85835039,102080.0,102070.0,0.4281821]
[1747319322150,0.85835039,102080.0,102070.0,0.4381821]
[1747319322346,0.95565979,102080.0,102070.0,0.4381821]
[1747319322718,0.98785979,102080.0,102070.0,0.4281821]
[1747319323616,1.01805979,102080.0,102070.0,0.4281821]
[1747319324387,0.95565979,102080.0,102070.0,0.4281821]
[1747319325330,0.95565979,102080.0,102070.0,0.0188821]
[1747319325901,0.74033979,102080.0,102070.0,0.0188821]
[1747319326125,0.85827039,102080.0,102070.0,0.0288821]
[1747319326302,0.85827039,102080.0,102070.0,0.0618821]
[1747319326482,0.85827039,102080.0,102070.0,0.0288821]
[1747319327321,0.85827039,102080.0,102070.0,0.0188821]
[1747319327579,0.92197039,102080.0,102070.0,0.0188821]
[1747319327781,1.01927979,102080.0,102070.0,0.0188821]
[1747319328197,0.98787979,102080.0,102070.0,0.0188821]
[1747319329859,0.95557979,102080.0,102070.0,0.0188821]
[1747319330738,1.00397979,102080.0,102070.0,0.0188821]
[1747319331379,0.78873979,102080.0,102070.0,0.0288821]
[1747319331607,1.00393979,102080.0,102070.0,0.0288821]
[1747319332910,0.91642634,102080.0,102070.0,0.0611821]
[1747319333742,0.92618229,102080.0,102070.0,0.0611821]
[1747319333971,0.91638634,102080.0,102070.0,0.0611821]
[1747319334187,0.86798634,102080.0,102070.0,0.26692316]
[1747319334402,0.86798634,102080.0,102070.0,0.0934821]
[1747319334627,0.8581903,102080.0,102070.0,0.0934821]
[1747319334859,0.8581903,102080.0,102070.0,0.0611821]
[1747319335082,0.9554997,102080.0,102070.0,0.25712606]
[1747319335285,0.54753756,102080.0,102070.0,0.30901997]
[1747319335489,0.537742,102080.0,102070.0,0.30902007]
[1747319335695,0.537742,102080.0,102070.0,0.31589195]
[1747319336273,0.537742,102080.0,102070.0,0.31589204]
[1747319336475,0.56871301,102080.0,102070.0,0.31589204]
[1747319336704,0.55891735,102080.0,102070.0,0.31589204]
[1747319337127,0.55891735,102080.0,102070.0,0.72519204]
[1747319337342,0.52794625,102080.0,102070.0,0.71539504]
[1747319337776,0.5181503,102080.0,102070.0,0.71539504]
[1747319337987,0.5181503,102080.0,102070.0,0.71539513]
[1747319338214,0.5181503,102080.0,102070.0,0.44505398]
[1747319338215,0.50835416,102080.0,102070.0,0.44505398]
[1747319338672,0.50835416,102080.0,102070.0,0.67379794]
[1747319338890,0.50835416,102080.0,102070.0,0.68359513]
[1747319339115,0.50835416,102080.0,102070.0,0.48765117]
[1747319339334,0.50835416,102080.0,102070.0,0.47785398]
[1747319340173,0.54445753,102080.0,102070.0,0.47785398]
[1747319340374,0.5181503,102080.0,102070.0,0.72409185]
[1747319340611,0.52794615,102080.0,102070.0,0.73388856]
[1747319340819,0.33241775,102080.0,102070.0,0.73388856]
[1747319341034,0.53766171,102080.0,102070.0,0.72409195]
[1747319341243,0.56529053,102090.0,102080.0,0.24752099]
[1747319341451,0.65280523,102090.0,102080.0,0.01]
[1747319341659,0.2057208,102080.0,102070.0,0.4381821]
[1747319341867,0.3030302,102080.0,102070.0,0.4381821]
[1747319342510,0.3030302,102080.0,102070.0,0.4371821]
[1747319343764,0.7059302,102080.0,102070.0,0.0178821]
[1747319344063,0.8032396,102080.0,102070.0,0.0178821]
[1747319348373,0.7721396,102080.0,102070.0,0.0178821]
[1747319348583,0.7403396,102080.0,102070.0,0.0178821]
[1747319349505,0.9868596,102080.0,102070.0,0.0178821]
[1747319350127,0.9552596,102080.0,102070.0,0.0178821]
[1747319350454,0.9552596,102080.0,102070.0,0.0278821]
[1747319350877,0.96505555,102080.0,102070.0,0.0278821]
[1747319351098,0.8579502,102080.0,102070.0,0.0278821]
[1747319351325,0.8579502,102080.0,102070.0,0.0604821]
[1747319351546,0.8579502,102080.0,102070.0,0.07027929]
[1747319351767,0.8579502,102080.0,102070.0,0.0604821]
[1747319352198,0.84815416,102080.0,102070.0,0.0604821]
[1747319352432,0.94546356,102080.0,102070.0,0.0604821]
[1747319352621,0.94546356,102080.0,102070.0,0.0278821]
[1747319354591,0.94546356,102080.0,102070.0,0.54363368]
[1747319354592,0.0973094,102080.0,102070.0,0.54363368]
[1747319354831,0.24430317,102100.0,102090.0,0.23529091]
[1747319354832,0.06798757,102100.0,102090.0,0.23529091]
[1747319355037,0.33177649,102100.0,102090.0,0.30798561]
[1747319355244,0.53745786,102100.0,102090.0,0.08269527]
[1747319355444,0.52766412,102100.0,102090.0,0.0729]
[1747319355701,0.52766412,102100.0,102090.0,0.26880557]
[1747319356127,0.58850279,102100.0,102090.0,0.0403]
[1747319356331,0.58950279,102100.0,102090.0,0.0403]
[1747319357153,0.57970876,102100.0,102090.0,0.0403]
[1747319357361,0.56991445,102100.0,102090.0,0.23620557]
[1747319357542,0.0993094,102100.0,102090.0,0.29839024]
[1747319357785,0.0993094,102100.0,102090.0,0.30526022]
[1747319357786,0.33373669,102100.0,102090.0,0.30526022]
[1747319358010,0.539417,102100.0,102090.0,0.30526022]
[1747319358234,0.53941805,102100.0,102090.0,0.08976525]
[1747319358444,0.52962412,102100.0,102090.0,0.07996998]
[1747319358647,0.52962412,102100.0,102090.0,0.08976525]
[1747319358847,0.002,102100.0,102090.0,0.69497063]
[1747319359055,0.22659355,102100.0,102090.0,0.71456012]
[1747319359260,0.2168,102100.0,102090.0,1.0985693]
[1747319359463,0.23638757,102100.0,102090.0,0.71456012]
[1747319359666,0.2168,102100.0,102090.0,0.30526012]
[1747319359874,0.2168,102100.0,102090.0,0.6892693]
[1747319360083,0.22659355,102100.0,102090.0,0.30526012]
[1747319360477,0.22659364,102100.0,102090.0,0.30526012]
[1747319360648,0.2168,102100.0,102090.0,0.30526012]
[1747319361039,0.22659355,102100.0,102090.0,0.71456012]
[1747319361640,0.23638719,102100.0,102090.0,0.71456012]
[1747319361856,0.54917131,102100.0,102090.0,0.69497063]
[1747319362060,0.52958412,102100.0,102090.0,0.48926998]
[1747319362436,0.52958412,102100.0,102090.0,0.45646998]
[1747319362661,0.52958412,102100.0,102090.0,0.67154998]
[1747319362865,0.52958412,102100.0,102090.0,0.87725063]
[1747319363113,0.52958412,102100.0,102090.0,0.87038065]
[1747319363533,0.33369659,102100.0,102090.0,0.92237004]
[1747319363749,0.34349052,102100.0,102090.0,0.92237004]
[1747319363965,0.54917102,102100.0,102090.0,0.92237004]
[1747319364171,0.54917102,102100.0,102090.0,0.92237014]
[1747319364374,0.54917179,102100.0,102090.0,0.91257564]
[1747319364546,0.54917179,102100.0,102090.0,0.90278065]
[1747319364727,0.53937805,102100.0,102090.0,0.90278065]
[1747319364933,0.53937805,102100.0,102090.0,0.91257564]
[1747319365123,0.53937805,102100.0,102090.0,0.89298557]
[1747319365324,0.51979,102100.0,102090.0,0.89298557]
[1747319365519,0.51979,102100.0,102090.0,0.69708]
[1747319365739,0.51979,102100.0,102090.0,0.66468]
[1747319365945,0.51979,102100.0,102090.0,0.63438]
[1747319366699,0.51979,102100.0,102090.0,0.62438]
[1747319366897,0.99395588,102100.0,102090.0,0.63438]
[1747319367141,0.99395588,102100.0,102090.0,0.4093]
[1747319367506,0.55551655,102080.0,102070.0,0.8584221]
[1747319367720,0.71342595,102080.0,102070.0,0.8584221]
[1747319367930,0.68292595,102080.0,102070.0,0.8584221]
[1747319368179,0.65282595,102080.0,102070.0,0.8584221]
[1747319368393,0.65282595,102080.0,102070.0,1.06416316]
[1747319368594,0.6430302,102080.0,102070.0,1.06416316]
[1747319368763,0.6430302,102080.0,102070.0,1.07896016]
[1747319368963,0.6440302,102080.0,102070.0,1.06916316]
[1747319369166,0.63423416,102080.0,102070.0,1.06916316]
[1747319369370,0.63423416,102080.0,102070.0,1.07896016]
[1747319369558,0.63423416,102080.0,102070.0,0.8634221]
[1747319370367,0.72526988,102080.0,102070.0,0.8634221]
[1747319370836,0.63307385,102080.0,102070.0,0.8634221]
[1747319371341,0.6400774,102080.0,102070.0,0.8634221]
[1747319371535,0.65966871,102080.0,102070.0,1.10235849]
[1747319371753,0.32362171,102080.0,102070.0,1.34999849]
[1747319371891,0.3040303,102080.0,102070.0,1.07835734]
[1747319373671,0.3040303,102080.0,102070.0,1.06835734]
[1747319373875,0.3040303,102080.0,102070.0,1.07835734]
[1747319375566,0.5185503,102080.0,102070.0,1.07835734]
[1747319377845,0.65958763,102080.0,102070.0,1.07835734]
[1747319378054,0.65958763,102080.0,102070.0,1.07850229]
[1747319379683,0.5802503,102080.0,102070.0,1.07850229]
[1747319380784,0.5802503,102080.0,102070.0,0.65526229]
[1747319381611,0.9202503,102080.0,102070.0,0.64526229]
[1747319381821,0.9202503,102080.0,102070.0,0.43062229]
[1747319382229,0.9202503,102080.0,102070.0,0.02132229]
[1747319382442,1.0175597,102080.0,102070.0,0.02132229]
[1747319384714,0.9202503,102080.0,102070.0,0.02132229]
[1747319385551,0.6746303,102080.0,102070.0,0.02132229]
[1747319385729,0.9218903,102080.0,102070.0,0.02132229]
[1747319386601,0.8889903,102080.0,102070.0,0.02132233]
[1747319387033,0.8583903,102080.0,102070.0,0.02132233]
[1747319387229,0.9556997,102080.0,102070.0,0.02132233]
[1747319388325,0.6440303,102080.0,102070.0,0.43062233]
[1747319388530,0.8583503,102080.0,102070.0,0.44062233]
[1747319391306,0.8583503,102080.0,102070.0,0.03132233]
[1747319397181,0.8583503,102080.0,102070.0,0.44062233]
[1747319397876,0.9222503,102080.0,102070.0,0.43062233]
[1747319398212,1.0195597,102080.0,102070.0,0.43062233]
[1747319400266,0.9222503,102080.0,102070.0,0.43062233]
[1747319400485,0.86794653,102080.0,102070.0,0.43062233]
[1747319400694,0.65382653,102080.0,102070.0,0.43062233]
[1747319400925,0.89974653,102080.0,102070.0,0.43062233]
[1747319401149,0.93064653,102080.0,102070.0,0.43062233]
[1747319401352,1.02795593,102080.0,102070.0,0.43062233]
[1747319401555,1.04249678,102080.0,102070.0,0.02132233]
[1747319402419,0.82837678,102080.0,102070.0,0.02132233]
[1747319402594,1.04245678,102080.0,102070.0,0.02132233]
[1747319403006,0.21555878,102060.0,102050.0,0.37336233]
[1747319403209,0.21555878,102060.0,102050.0,0.2242]
[1747319403210,0.31286818,102060.0,102050.0,0.2242]
[1747319403407,0.31286818,102060.0,102050.0,0.2142]
[1747319403605,0.31286818,102060.0,102050.0,0.2242]
[1747319404876,0.0973094,102060.0,102050.0,0.44957855]
[1747319405080,0.3123894,102060.0,102050.0,0.52037855]
[1747319405289,0.23467515,102060.0,102050.0,0.52037855]
[1747319405499,0.23467515,102060.0,102050.0,0.52725535]
[1747319405701,0.21508,102060.0,102050.0,0.91126453]
[1747319406131,0.44143616,102060.0,102050.0,0.91315916]
[1747319406340,0.52894857,102060.0,102050.0,0.7171768]
[1747319406551,0.5946461,102060.0,102050.0,0.7171768]
[1747319406753,0.5946461,102060.0,102050.0,0.92295827]
[1747319406884,0.52894857,102060.0,102050.0,0.92295827]
[1747319407097,0.52894857,102060.0,102050.0,0.93275719]
[1747319407312,0.51915061,102060.0,102050.0,0.7171768]
[1747319408055,0.51915061,102060.0,102050.0,0.93275691]
[1747319408251,0.51915061,102060.0,102050.0,0.92295827]
[1747319408647,0.51915061,102060.0,102050.0,0.9327571]
[1747319409070,0.3133894,102060.0,102050.0,1.30696745]
[1747319409285,0.32318688,102060.0,102050.0,1.33636364]
[1747319409519,0.0993094,102060.0,102050.0,0.95235446]
[1747319409757,0.32306688,102060.0,102050.0,0.95235446]
[1747319410060,0.33286455,102060.0,102050.0,0.95235446]
[1747319410262,0.53862556,102060.0,102050.0,0.95235446]
[1747319410478,0.53862614,102060.0,102050.0,0.7171768]
[1747319410700,0.53862614,102060.0,102050.0,0.6513768]
[1747319410701,0.56236812,102060.0,102050.0,0.6513768]
[1747319410921,0.56236812,102060.0,102050.0,0.6413768]
[1747319411102,0.96466812,102060.0,102050.0,0.4271768]
[1747319411318,1.01306812,102060.0,102050.0,0.4203]
[1747319411946,1.01206812,102060.0,102050.0,0.4153]
[1747319412179,1.01206812,102060.0,102050.0,0.009]
[1747319412530,1.01206812,102060.0,102050.0,0.006]
[1747319412735,0.20578128,102050.0,102040.0,1.0567]
[1747319412982,0.30309068,102050.0,102040.0,1.0568446]
[1747319413540,0.0973094,102050.0,102040.0,1.28464616]
[1747319413798,0.0973094,102050.0,102040.0,1.72935441]
[1747319413996,0.21492,102060.0,102050.0,0.29847855]
[1747319414202,0.3112294,102060.0,102050.0,0.68248773]
[1747319414356,0.53658518,102060.0,102050.0,0.29068011]
[1747319414563,0.54638381,102060.0,102050.0,0.287756]
[1747319414763,0.53658633,102060.0,102050.0,0.08197462]
[1747319414973,0.53658633,102060.0,102050.0,0.29755483]
[1747319415169,0.53658633,102060.0,102050.0,0.30535346]
[1747319415374,0.53658633,102060.0,102050.0,0.30935346]
[1747319415590,0.53658624,102060.0,102050.0,0.319152]